bitfinex/quotes_SOLUSD_20250522
["timestamp","ask_amount","ask_price","bid_price","bid_amount"]
[1747913860078,5.62492968,177.78,177.75,37.9]
[1747913861477,5.62492968,177.78,177.75,71.62]
[1747913862685,5.6246133,177.79,177.75,71.62]
[1747913865804,19.68541273,177.8,177.75,71.62]
[1747913865973,22.49617339,177.8,177.75,71.62]
[1747913870079,8.43505762,177.8,177.75,71.62]
[1747913870690,22.49580002,177.8,177.75,71.62]
[1747913871195,14.0366607,177.79,177.75,71.62]
[1747913872201,5.62492968,177.78,177.75,71.62]
[1747913873514,5.6246133,177.79,177.75,71.62]
[1747913876513,19.68614656,177.79,177.75,71.62]
[1747913876713,33.72280726,177.79,177.75,37.9]
[1747913876904,14.0366607,177.76,177.7,37.82]
[1747913877109,14.0366607,177.76,177.71,33.72]
[1747913877716,14.0366607,177.76,177.7,71.54]
[1747913878531,19.69057664,177.75,177.7,71.54]
[1747913879602,5.62587904,177.75,177.71,33.72]
[1747913880726,19.68836136,177.77,177.71,33.72]
[1747913881628,5.6252461,177.77,177.71,33.72]
[1747913882737,5.6246133,177.79,177.71,33.72]
[1747913882913,5.6246133,177.79,177.71,39.34710426]
[1747913883104,5.6246133,177.79,177.72,26.0]
[1747913883506,5.62366437,177.82,177.74,26.0]
[1747913883711,5.62366437,177.82,177.75,35.2853]
[1747913883903,5.62366437,177.82,177.76,37.82]
[1747913884702,19.68235176,177.83,177.76,37.82]
[1747913886424,22.50604191,177.83,177.76,37.82]
[1747913887624,19.68235176,177.83,177.76,37.82]
[1747913890107,22.52607744,177.83,177.76,37.82]
[1747913890710,19.68235176,177.83,177.76,37.82]
[1747913891127,14.05900362,177.83,177.76,37.82]
[1747913891715,4.15764471,177.82,177.76,37.82]
[1747913892236,44.19430541,177.82,177.76,71.54]
[1747913892528,14.0366607,177.81,177.76,71.54]
[1747913892908,4.15764471,177.8,177.76,71.54]
[1747913893841,5.6246133,177.79,177.76,71.54]
[1747913896037,14.0366607,177.79,177.76,37.82]
[1747913896226,40.0366607,177.78,177.76,37.82]
[1747913896426,4.1607816,177.77,177.72,33.72]
[1747913897632,4.1607816,177.76,177.72,33.72]
[1747913898115,5.62587904,177.75,177.72,33.72]
[1747913899131,5.6252461,177.77,177.72,33.72]
[1747913899302,19.68836136,177.77,177.72,33.72]
[1747913899507,2.08392834,177.76,177.72,33.72]
[1747913900732,2.08392834,177.76,177.73,33.72]
[1747913901615,7.70863765,177.79,177.73,39.34650097]
[1747913901814,7.70863765,177.79,177.73,33.72]
[1747913902016,7.70863765,177.79,177.73,39.34643369]
[1747913902218,5.62470931,177.79,177.73,39.34643369]
[1747913902418,5.62470931,177.79,177.73,33.72]
[1747913902936,4.17346139,177.78,177.73,33.72]
[1747913903348,5.6252461,177.77,177.73,33.72]
[1747913904338,19.68422487,177.81,177.73,33.72]
[1747913904541,6.25863927,177.8,177.73,33.72]
[1747913905042,6.25863927,177.8,177.74,37.72]
[1747913905235,2.08621309,177.79,177.74,37.72]
[1747913905553,4.17242618,177.78,177.74,37.72]
[1747913906041,9.79762735,177.78,177.74,37.72]
[1747913906448,5.62520117,177.78,177.74,37.72]
[1747913907652,14.06024422,177.81,177.74,37.72]
[1747913908036,6.25630422,177.8,177.74,37.72]
[1747913908548,2.08546866,177.79,177.74,37.72]
[1747913908850,4.17083556,177.78,177.74,37.72]
[1747913909742,14.06024422,177.81,177.74,37.72]
[1747913910251,4.17081933,177.8,177.74,37.72]
[1747913910555,7.70998583,177.79,177.74,37.72]
[1747913911221,5.6246133,177.79,177.74,37.72]
[1747913911957,19.68614656,177.79,177.74,37.72]
[1747913912652,14.06153326,177.79,177.74,37.72]
[1747913913143,4.17025028,177.78,177.74,37.72]
[1747913913942,14.06153326,177.79,177.74,37.72]
[1747913914655,14.06153326,177.79,177.74,71.44]
[1747913914960,2.08497741,177.78,177.74,37.72]
[1747913915631,2.08497741,177.79,177.74,37.72]
[1747913916756,5.62492968,177.78,177.74,37.72]
[1747913918663,5.62492968,177.78,177.74,37.72]
[1747913918838,14.06232422,177.78,177.74,37.72]
[1747913919358,4.17015088,177.77,177.74,37.72]
[1747913919556,4.17015088,177.77,177.73,71.44]
[1747913920255,2.08503256,177.76,177.73,37.72]
[1747913920834,4.17015088,177.75,177.73,37.72]
[1747913921035,5.62619556,177.74,177.73,37.72]
[1747913923164,34.42128481,177.8,177.73,37.72]
[1747913923165,19.68836136,177.77,177.73,37.72]
[1747913923349,5.6252461,177.77,177.73,63.72]
[1747913923966,5.6246133,177.79,177.73,63.72]
[1747913924263,6.2563214,177.78,177.73,63.72]
[1747913924749,2.08544045,177.77,177.73,63.72]
[1747913925358,7.71082788,177.77,177.73,63.72]
[1747913925549,4.17088095,177.76,177.73,63.72]
[1747913926563,14.06112808,177.8,177.73,63.72]
[1747913926748,2.0864885,177.79,177.73,63.72]
[1747913927165,4.17238389,177.78,177.73,63.72]
[1747913928066,14.06112808,177.8,177.73,63.72]
[1747913928951,6.25868758,177.79,177.73,63.72]
[1747913929148,5.62492968,177.78,177.73,63.72]
[1747913929664,4.17245839,177.77,177.73,69.34640988]
[1747913929875,4.17245839,177.77,177.73,63.72]
[1747913930374,5.62492968,177.78,177.73,63.72]
[1747913931485,5.62366437,177.82,177.73,69.34650288]
[1747913931769,2.08660411,177.81,177.73,63.72]
[1747913933971,9.79845432,177.77,177.73,63.72]
[1747913934575,19.68522069,177.8,177.73,63.72]
[1747913935388,2.08649149,177.79,177.73,63.72]
[1747913935573,4.17299373,177.78,177.73,63.72]
[1747913936085,5.6252461,177.77,177.73,63.72]
[1747913936474,5.6252461,177.77,177.74,33.72]
[1747913936674,4.17299373,177.76,177.74,33.72]
[1747913937095,4.17299373,177.76,177.73,63.72]
[1747913937281,4.17299373,177.76,177.75,33.72]
[1747913937586,5.6252461,177.77,177.75,33.72]
[1747913938798,9.79965566,177.76,177.75,33.72]
[1747913939181,4.17409311,177.76,177.75,33.72]
[1747913939484,9.79965566,177.76,177.75,33.72]
[1747913941982,9.79965566,177.76,177.73,63.72]
[1747913942178,9.79965566,177.76,177.74,33.72]
[1747913942583,19.68522069,177.8,177.74,33.72]
[1747913943288,2.08847953,177.79,177.74,33.72]
[1747913943676,4.17723961,177.78,177.74,33.72]
[1747913943876,2.08847953,177.77,177.74,33.72]
[1747913944476,4.17723961,177.76,177.74,33.72]
[1747913945684,16.83964062,177.83,177.74,33.72]
[1747913946478,2.08963393,177.82,177.74,33.72]
[1747913946870,4.17933741,177.81,177.74,33.72]
[1747913947071,2.08963393,177.8,177.74,33.72]
[1747913947471,4.17933741,177.79,177.74,33.72]
[1747913947782,2.08963393,177.78,177.74,33.72]
[1747913948180,4.17933741,177.79,177.75,1.5615]
[1747913948395,4.17933741,177.78,177.75,1.5615]
[1747913949370,16.88700961,177.85,177.75,1.5615]
[1747913949991,4.17947917,177.84,177.75,1.5615]
[1747913950316,2.08974811,177.83,177.75,1.5615]
[1747913950888,2.08974811,177.82,177.75,1.5615]
[1747913951087,4.17947917,177.81,177.75,1.5615]
[1747913951702,2.08974811,177.8,177.75,1.5615]
[1747913952207,4.17947917,177.81,177.75,1.5615]
[1747913952403,4.17947917,177.8,177.75,1.5615]
[1747913952720,4.17947917,177.8,177.77,26.0]
[1747913953690,14.0366607,177.88,177.77,26.0]
[1747913953991,14.0366607,177.87,177.77,26.0]
[1747913954197,2.08714012,177.86,177.77,26.0]
[1747913954391,4.17426153,177.85,177.77,26.0]
[1747913955004,2.08714012,177.84,177.77,26.0]
[1747913955199,2.08714012,177.84,177.77,109.0]
[1747913955887,2.08714012,177.88,177.77,109.0]
[1747913956408,6.26036459,177.87,177.77,109.0]
[1747913957199,4.17322447,177.86,177.77,109.0]
[1747913957390,6.26036459,177.86,177.77,109.0]
[1747913957796,6.26036459,177.86,177.81,26.0]
[1747913958000,4.17322447,177.86,177.82,71.28]
[1747913958199,14.0366607,177.9,177.82,71.28]
[1747913958506,14.0366607,177.91,177.85,26.0]
[1747913958713,2.0844623,177.9,177.85,26.0]
[1747913959092,4.16892652,177.89,177.85,26.0]
[1747913960106,14.0366607,177.92,177.85,26.0]
[1747913960400,2.08336388,177.91,177.85,26.0]
[1747913961018,2.08336388,177.92,177.85,26.0]
[1747913961305,4.16517416,177.9,177.82,154.28]
[1747913962283,16.82786325,177.93,177.82,154.28]
[1747913963019,4.16093831,177.92,177.82,154.28]
[1747913963314,6.24135616,177.92,177.82,154.28]
[1747913963814,4.16093831,177.91,177.82,154.28]
[1747913964313,9.33684152,177.98,177.86,26.0]
[1747913964485,14.0366607,177.97,177.87,35.2418]
[1747913964684,14.0366607,177.97,177.88,37.56]
[1747913964905,2.07902776,177.96,177.88,37.56]
[1747913965503,4.1578671,177.95,177.88,37.56]
[1747913965812,5.61987186,177.94,177.88,37.56]
[1747913966198,14.0366607,177.93,177.88,37.56]
[1747913966618,33.70621222,177.94,177.88,37.56]
[1747913966990,19.66955152,177.94,177.88,37.56]
[1747913968203,14.04967966,177.94,177.88,37.56]
[1747913970400,19.66955152,177.94,177.88,37.56]
[1747913972221,33.70621222,177.94,177.88,37.56]
[1747913972521,14.0366607,177.93,177.88,37.56]
[1747913972691,14.0366607,177.92,177.88,37.56]
[1747913973014,33.70621222,177.94,177.88,37.56]
[1747913974586,14.0366607,177.93,177.88,37.56]
[1747913974890,14.0366607,177.92,177.88,37.56]
[1747913975091,14.0366607,177.93,177.88,37.56]
[1747913975896,19.67176258,177.92,177.88,37.56]
[1747913976414,33.70842328,177.92,177.88,37.56]
[1747913978219,28.08791969,177.92,177.88,37.56]
[1747913979328,14.0366607,177.9,177.88,37.56]
[1747913980217,5.62145145,177.89,177.88,37.56]
[1747913980413,19.65811215,177.89,177.88,37.56]
[1747913980613,106.46864694,177.89,177.82,33.7]
[1747913980822,14.0366607,177.86,177.82,33.7]
[1747913981820,14.0366607,177.85,177.82,33.7]
[1747913982406,5.62303193,177.84,177.82,33.7]
[1747913983118,5.62303193,177.84,177.8,210.36]
[1747913983319,5.62303193,177.84,177.8,281.6]
[1747913984335,5.62271577,177.85,177.8,281.6]
[1747913986655,19.67950519,177.85,177.8,281.6]
[1747913987519,14.0366607,177.84,177.8,247.9]
[1747913987719,14.0366607,177.84,177.8,37.54]
[1747913988241,14.0366607,177.81,177.7,1.5846]
[1747913988450,51.15144886,177.83,177.7,61.3046]
[1747913988633,14.0366607,177.79,177.7,61.3046]
[1747913989245,14.0366607,177.78,177.7,61.3046]
[1747913989456,14.0366607,177.77,177.71,33.72]
[1747913989650,19.68946894,177.76,177.71,33.72]
[1747913990440,33.72612964,177.76,177.7,1.5846]
[1747913990748,14.0366607,177.75,177.69,281.54]
[1747913991329,14.0366607,177.75,177.69,247.82]
[1747913991545,19.69168447,177.74,177.69,281.54]
[1747913992255,33.72834517,177.74,177.69,247.82]
[1747913992752,14.0366607,177.73,177.69,37.48]
[1747913993758,28.10214961,177.74,177.69,37.48]
[1747913994252,14.06548891,177.74,177.69,37.48]
[1747913995548,33.72834517,177.74,177.69,37.48]
[1747914001449,14.0366607,177.72,177.69,37.48]
[1747914001961,14.0366607,177.73,177.69,37.48]
[1747914002858,14.06548891,177.74,177.69,37.48]
[1747914003864,19.69168447,177.74,177.69,37.48]
[1747914005337,33.72834517,177.74,177.69,37.48]
[1747914006357,14.0366607,177.73,177.69,37.48]
[1747914006546,14.0366607,177.72,177.69,37.48]
[1747914006749,14.0366607,177.71,177.69,37.48]
[1747914006955,14.0366607,177.72,177.69,37.48]
[1747914007151,33.72834517,177.74,177.69,37.48]
[1747914007355,19.69168447,177.74,177.69,37.48]
[1747914007641,19.69168447,177.74,177.66,27.5648]
[1747914007840,33.72834517,177.74,177.66,27.5648]
[1747914008560,33.72834517,177.74,177.67,33.74]
[1747914008763,19.69168447,177.74,177.68,37.5]
[1747914009055,19.69168447,177.74,177.71,26.0]
[1747914009056,5.62619556,177.74,177.71,26.0]
[1747914009263,5.62619556,177.74,177.71,59.74]
[1747914010250,14.06359378,177.77,177.71,59.74]
[1747914010660,28.10025448,177.77,177.71,59.74]
[1747914010960,14.0366607,177.75,177.71,33.74]
[1747914011566,14.0366607,177.76,177.71,33.74]
[1747914012665,19.69057664,177.75,177.71,33.74]
[1747914019683,14.0366607,177.76,177.71,33.74]
[1747914020184,14.0366607,177.77,177.71,33.74]
[1747914020477,19.6872539,177.78,177.71,33.74]
[1747914020642,33.7239146,177.78,177.71,33.74]
[1747914020980,19.6872539,177.78,177.72,1.5023]
[1747914021872,14.06232422,177.78,177.72,1.5023]
[1747914025781,28.09898492,177.78,177.72,1.5023]
[1747914026379,14.06232422,177.78,177.72,1.5023]
[1747914028589,19.6872539,177.78,177.72,1.5023]
[1747914029685,5.62492968,177.78,177.74,26.0]
[1747914029873,5.62492968,177.78,177.75,37.42]
[1747914030074,5.62492968,177.78,177.76,33.74]
[1747914030587,14.06037068,177.81,177.76,33.74]
[1747914030786,2.08349097,177.8,177.76,33.74]
[1747914030999,6.25049161,177.8,177.76,33.74]
[1747914031573,6.25049161,177.8,177.76,71.16]
[1747914031974,2.08349097,177.79,177.76,71.16]
[1747914032170,4.16700064,177.78,177.76,71.16]
[1747914032891,5.6252461,177.77,177.76,71.16]
[1747914033988,7.70873707,177.77,177.76,71.16]
[1747914034196,7.70873707,177.77,177.76,37.42]
[1747914034383,11.87573771,177.77,177.76,37.42]
[1747914035582,9.79224674,177.77,177.76,37.42]
[1747914041199,19.68503936,177.8,177.76,37.42]
[1747914041587,2.08710191,177.79,177.76,37.42]
[1747914041893,4.17460589,177.78,177.76,37.42]
[1747914042681,5.62429696,177.8,177.76,37.42]
[1747914043201,5.62366437,177.82,177.76,37.42]
[1747914043695,33.71948601,177.82,177.76,37.42]
[1747914043900,6.2651563,177.81,177.76,37.42]
[1747914044486,6.2651563,177.8,177.76,37.42]
[1747914045082,2.08838933,177.79,177.76,37.42]
[1747914045493,5.62492968,177.78,177.76,37.42]
[1747914046786,4.17735876,177.77,177.76,37.42]
[1747914046983,4.17735876,177.77,177.74,25.71829846]
[1747914047918,14.06232422,177.78,177.74,25.71829846]
[1747914048385,2.08902972,177.77,177.74,25.71829846]
[1747914048718,2.08902972,177.77,177.72,37.36]
[1747914048879,4.17798925,177.76,177.72,37.36]
[1747914049884,5.62619556,177.74,177.72,37.36]
[1747914051987,19.68966493,177.76,177.72,37.36]
[1747914052808,6.26561095,177.75,177.72,37.36]
[1747914053187,4.17707397,177.75,177.72,37.36]
[1747914054094,4.17707397,177.74,177.72,37.36]
[1747914054294,5.62651212,177.73,177.72,37.36]
[1747914054808,5.62624958,177.74,177.72,37.36]
[1747914057105,19.68676463,177.79,177.72,37.36]
[1747914057282,33.72342533,177.79,177.72,37.36]
[1747914057486,6.26722546,177.78,177.72,37.36]
[1747914058216,6.26722546,177.77,177.72,37.36]
[1747914059106,2.08907515,177.76,177.72,37.36]
[1747914059409,5.62587904,177.75,177.72,37.36]
[1747914060115,4.17815031,177.74,177.72,37.36]
[1747914060295,5.62651212,177.73,177.72,37.36]
[1747914061413,19.68946894,177.76,177.72,37.36]
[1747914061599,2.08946785,177.75,177.72,37.36]
[1747914062291,5.62492968,177.78,177.73,1.6171]
[1747914062619,5.62492968,177.78,177.75,26.0]
[1747914063294,5.62398065,177.81,177.77,26.0]
[1747914063607,14.05965392,177.82,177.78,71.1]
[1747914063813,2.09132707,177.8,177.78,71.1]
[1747914064016,4.18266972,177.79,177.78,71.1]
[1747914065900,5.62366437,177.82,177.78,71.1]
[1747914066098,2.09117182,177.81,177.78,71.1]
[1747914066618,4.18135679,177.8,177.78,71.1]
[1747914067399,5.62366437,177.82,177.78,71.1]
[1747914067805,5.62303193,177.84,177.78,71.1]
[1747914068013,4.17612294,177.83,177.78,71.1]
[1747914068219,4.17612294,177.83,177.79,27.6156]
[1747914068827,5.62303193,177.84,177.79,27.6156]
[1747914069223,5.62303193,177.84,177.81,26.0]
[1747914069518,5.62303193,177.84,177.82,33.72]
[1747914069718,14.05406357,177.89,177.82,33.72]
[1747914069929,6.25704996,177.88,177.82,33.72]
[1747914070607,4.1713653,177.87,177.82,33.72]
[1747914071530,19.67551502,177.89,177.82,33.72]
[1747914072033,2.08338773,177.88,177.82,33.72]
[1747914072735,19.67551502,177.89,177.82,33.72]
[1747914073302,4.16372931,177.88,177.82,33.72]
[1747914074033,19.67551502,177.89,177.82,33.72]
[1747914074203,4.16188907,177.88,177.82,33.72]
[1747914074917,19.67551502,177.89,177.82,33.72]
[1747914075116,14.05406357,177.89,177.82,33.72]
[1747914080540,14.0366607,177.88,177.81,109.0]
[1747914080828,14.0366607,177.87,177.81,59.72]
[1747914081136,14.0366607,177.84,177.79,33.72]
[1747914083148,5.62334814,177.83,177.79,33.72]
[1747914083921,33.71837919,177.83,177.79,33.72]
[1747914084121,33.71837919,177.83,177.78,37.36]
[1747914084422,33.71837919,177.83,177.78,71.08]
[1747914087348,14.05837035,177.83,177.78,71.08]
[1747914087737,19.65937647,177.85,177.78,71.08]
[1747914088328,50.0,177.81,177.78,71.08]
[1747914089616,5.62429696,177.8,177.78,71.08]
[1747914090445,55.6240583,177.81,177.78,71.08]
[1747914090650,50.0,177.81,177.78,71.08]
[1747914091163,55.62398694,177.81,177.78,71.08]
[1747914091352,50.0,177.81,177.78,71.08]
[1747914091539,50.0,177.81,177.8,26.0]
[1747914093255,50.0,177.81,177.79,5.6244599]
[1747914093761,50.0,177.81,177.8,26.0]
[1747914094458,50.0,177.81,177.8,109.0]
[1747914094670,50.0,177.81,177.8,110.6486]
[1747914096262,50.0,177.81,177.8,84.6486]
[1747914096464,55.62398065,177.81,177.8,84.6486]
[1747914096666,55.62398065,177.81,177.8,83.0]
[1747914096874,55.62398065,177.81,177.78,71.08]
[1747914097942,55.62398065,177.81,177.79,33.72]
[1747914099255,55.62398065,177.81,177.78,37.36]
[1747914099463,55.62398065,177.81,177.8,33.72]
[1747914102463,50.0,177.81,177.8,33.72]
[1747914103342,55.62398065,177.81,177.8,33.72]
[1747914106040,55.62398065,177.81,177.78,37.36]
[1747914106245,55.62398065,177.81,177.79,33.72]
[1747914113074,50.0,177.81,177.79,33.72]
[1747914113274,55.62405027,177.81,177.79,33.72]
[1747914113652,55.62405027,177.81,177.78,37.36]
[1747914113857,14.0366607,177.8,177.78,37.36]
[1747914114781,5.6246133,177.79,177.78,37.36]
[1747914115580,19.68614656,177.79,177.74,26.0]
[1747914115768,33.72280726,177.79,177.74,59.72]
[1747914117186,19.68614656,177.79,177.74,59.72]
[1747914119078,28.09819396,177.79,177.74,59.72]
[1747914119478,14.0366607,177.78,177.74,59.72]
[1747914120179,14.0366607,177.78,177.73,37.22]
[1747914120386,14.0366607,177.77,177.73,70.94]
[1747914120763,14.0366607,177.78,177.73,70.94]
[1747914120963,14.0366607,177.77,177.73,70.94]
[1747914121164,5.62556255,177.76,177.73,70.94]
[1747914121387,19.66222325,177.76,177.73,37.22]
[1747914121776,6.26432629,177.75,177.73,37.22]
[1747914122479,19.66222325,177.76,177.73,37.22]
[1747914124473,14.0366607,177.76,177.73,37.22]
[1747914125377,5.62587904,177.75,177.73,37.22]
[1747914125677,19.66253974,177.75,177.73,37.22]
[1747914127762,14.0366607,177.74,177.69,33.72]
[1747914127967,14.0366607,177.74,177.68,37.24]
[1747914128308,14.0366607,177.73,177.68,70.96]
[1747914128619,14.0366607,177.72,177.68,37.24]
[1747914128792,14.0366607,177.71,177.68,37.24]
[1747914128993,14.0366607,177.72,177.68,37.24]
[1747914129193,14.0366607,177.73,177.68,37.24]
[1747914129702,5.62682871,177.72,177.68,37.24]
[1747914133326,14.0366607,177.71,177.68,37.24]
[1747914133908,14.0366607,177.72,177.68,37.24]
[1747914135236,5.62714534,177.71,177.68,37.24]
[1747914135624,19.66380604,177.71,177.68,37.24]
[1747914136926,14.0366607,177.7,177.68,37.24]
[1747914138821,5.62777871,177.69,177.68,37.24]
[1747914143268,5.62777871,177.69,177.65,33.74]
[1747914143431,19.69722549,177.69,177.65,33.74]
[1747914144472,5.62777871,177.69,177.65,33.74]
[1747914144771,5.62714534,177.71,177.66,1.6295]
[1747914145465,5.62682871,177.72,177.67,37.18]
[1747914146873,5.62651212,177.73,177.67,37.18]
[1747914147387,5.62651212,177.73,177.67,63.18]
[1747914147570,5.6252461,177.77,177.7,26.0]
[1747914147875,5.6252461,177.77,177.71,33.74]
[1747914148376,19.68836136,177.77,177.71,33.74]
[1747914150373,33.72502206,177.77,177.71,33.74]
[1747914150578,14.0366607,177.75,177.71,70.92]
[1747914150783,14.0366607,177.76,177.71,70.92]
[1747914150964,5.62587904,177.75,177.71,70.92]
[1747914151276,19.69057664,177.75,177.71,70.92]
[1747914152058,5.62587904,177.75,177.71,70.92]
[1747914152659,5.6252461,177.77,177.71,70.92]
[1747914152858,5.62492968,177.78,177.72,1.5352]
[1747914153972,5.6246133,177.79,177.72,1.5352]
[1747914158892,5.6252461,177.77,177.74,26.0]
[1747914159980,5.6246133,177.79,177.74,26.0]
[1747914161401,5.6246133,177.79,177.72,1.5352]
[1747914163389,5.6246133,177.79,177.72,90.16194642]
[1747914163579,5.6246133,177.79,177.72,122.55694642]
[1747914163977,5.62441355,177.8,177.72,122.55694642]
[1747914164889,5.62441355,177.8,177.75,26.0]
[1747914165091,5.62441355,177.8,177.76,33.72]
[1747914165297,55.62403054,177.81,177.78,26.0]
[1747914166912,50.0,177.81,177.78,27.5885]
[1747914167415,50.0,177.81,177.78,33.2133975]
[1747914170010,50.0,177.81,177.78,27.5885]
[1747914171104,50.0,177.81,177.79,33.72]
[1747914185031,50.0,177.81,177.79,122.3444711]
[1747914185240,5.62081951,177.91,177.83,26.0]
[1747914185403,5.62081951,177.91,177.87,26.0]
[1747914185601,5.62081951,177.91,177.88,33.72]
[1747914187127,19.67118613,177.93,177.88,33.72]
[1747914194322,5.62018771,177.93,177.88,33.72]
[1747914195436,19.66844618,177.95,177.88,33.72]
[1747914199237,5.61955605,177.95,177.88,33.72]
[1747914201242,5.61892453,177.97,177.88,39.3416557]
[1747914201436,19.66623587,177.97,177.88,39.3416557]
[1747914202139,19.66623587,177.97,177.88,122.3416557]
[1747914202736,26.0,177.92,177.88,83.0]
[1747914203146,26.0,177.92,177.87,33.7]
[1747914204430,40.0366607,177.94,177.87,33.7]
[1747914204627,19.67065699,177.93,177.84,38.7296]
[1747914204828,19.67065699,177.93,177.85,33.7]
[1747914205825,33.70731769,177.93,177.85,33.7]
[1747914206240,19.67065699,177.93,177.85,33.7]
[1747914206953,33.70731769,177.93,177.85,33.7]
[1747914209343,14.05046928,177.93,177.85,33.7]
[1747914211745,19.67065699,177.93,177.85,33.7]
[1747914212626,4.17790435,177.92,177.85,33.7]
[1747914213133,5.62081951,177.91,177.85,33.7]
[1747914214552,5.62081951,177.91,177.86,26.0]
[1747914215354,14.05046928,177.93,177.86,26.0]
[1747914215930,14.05046928,177.93,177.88,26.0]
[1747914216332,5.61955605,177.95,177.88,26.0]
[1747914216751,4.18028386,177.94,177.88,26.0]
[1747914217456,19.66844618,177.95,177.88,26.0]
[1747914217630,19.66844618,177.95,177.89,37.04]
[1747914217831,5.61955605,177.95,177.9,33.7]
[1747914218558,19.66623587,177.97,177.9,33.7]
[1747914220059,4.1805552,177.96,177.9,33.7]
[1747914220964,5.61955605,177.95,177.9,33.7]
[1747914222539,5.61955605,177.95,177.91,26.0]
[1747914223141,14.04731134,177.97,177.91,26.0]
[1747914223848,2.09069292,177.96,177.91,26.0]
[1747914224260,4.18223934,177.95,177.91,26.0]
[1747914225447,14.04731134,177.97,177.91,26.0]
[1747914225448,5.61987186,177.94,177.91,26.0]
[1747914227438,19.66623587,177.97,177.91,26.0]
[1747914228051,6.27937081,177.96,177.91,26.0]
[1747914228861,6.27937081,177.95,177.91,26.0]
[1747914229070,6.27937081,177.95,177.91,33.7]
[1747914229260,2.09312495,177.94,177.91,33.7]
[1747914229568,5.62018771,177.93,177.91,33.7]
[1747914231365,14.04966318,177.95,177.91,33.7]
[1747914232347,4.19508547,177.94,177.91,33.7]
[1747914232847,14.04966318,177.95,177.91,33.7]
[1747914233545,5.62018771,177.93,177.91,33.7]
[1747914233746,2.09748955,177.94,177.93,26.0]
[1747914234151,5.61948591,177.96,177.94,26.0]
[1747914234353,5.61948591,177.96,177.95,36.98]
[1747914235669,19.66292134,178.0,177.95,70.68]
[1747914236256,6.2932918,177.99,177.95,70.68]
[1747914237176,2.09757068,177.98,177.95,70.68]
[1747914237371,4.19572112,177.97,177.95,70.68]
[1747914237778,5.61924027,177.96,177.95,70.68]
[1747914238874,14.04494382,178.0,177.95,70.68]
[1747914239576,6.29020807,177.99,177.95,70.68]
[1747914240355,6.29020807,177.98,177.95,70.68]
[1747914240957,5.61924027,177.96,177.95,70.68]
[1747914243457,19.66292134,178.0,177.95,70.68]
[1747914244057,2.09547868,177.99,177.95,70.68]
[1747914244259,4.19046841,177.98,177.95,70.68]
[1747914244667,5.61892453,177.97,177.95,70.68]
[1747914245855,19.66402606,177.99,177.95,70.68]
[1747914246255,2.09420654,177.98,177.95,70.68]
[1747914247158,4.18796364,177.97,177.95,70.68]
[1747914247757,5.61924027,177.96,177.95,70.68]
[1747914250278,14.0457329,177.99,177.95,70.68]
[1747914252584,44.64964886,178.06,177.95,96.68]
[1747914252585,5.61608446,178.06,177.95,96.68]
[1747914252768,5.61608446,178.06,177.98,27.6203]
[1747914252963,5.61608446,178.06,177.99,33.68]
[1747914253173,4.18720253,178.05,178.02,26.0]
[1747914253358,4.18720253,178.05,178.03,70.66]
[1747914253757,9.80391189,178.05,178.03,70.66]
[1747914254183,5.61670936,178.05,178.03,70.66]
[1747914255582,5.61670936,178.05,178.03,36.98]
[1747914255764,14.0366607,178.04,178.03,36.98]
[1747914256212,20.31594227,178.04,178.03,36.98]
[1747914256378,20.31594227,178.04,177.98,36.98]
[1747914256562,6.27928157,178.04,177.98,36.98]
[1747914256762,14.0366607,178.02,177.98,36.98]